[Event "*** Titled Tuesday Blitz"]
[Site "Chess.com"]
[Date "2019.05.07"]
[Round "7"]
[White "WPWPWP-2015"]
[Black "Karacsonyi_Gellert"]
[Result "0-1"]
[WhiteElo "2375"]
[BlackElo "2551"]
[TimeControl "180+2"]
[EndTime "14:42:18 PDT"]
[Termination "Karacsonyi_Gellert won by resignation"]

1. e4 {[%clk 0:03:01.9]} 1... c5 {[%clk 0:03:00.5]} 2. Nf3 {[%clk 0:02:50.9]}
2... Nc6 {[%clk 0:03:00.9]} 3. d4 {[%clk 0:02:51.3]} 3... cxd4 {[%clk
0:03:01.6]} 4. Nxd4 {[%clk 0:02:52.9]} 4... g6 {[%clk 0:03:02.9]} 5. Be3 {[%clk
0:02:52.4]} 5... Nf6 {[%clk 0:02:58.7]} 6. Nc3 {[%clk 0:02:46]} 6... Bg7 {[%clk
0:02:59.2]} 7. Bc4 {[%clk 0:02:46.1]} 7... O-O {[%clk 0:03:00.4]} 8. f3 {[%clk
0:02:46.3]} 8... Qb6 {[%clk 0:03:00.5]} 9. Qd2 {[%clk 0:02:45.8]} 9... Nxe4
{[%clk 0:02:58.9]} 10. Nxe4 {[%clk 0:02:44.5]} 10... Bxd4 {[%clk 0:02:54.7]} 11.
Bxd4 {[%clk 0:02:44.3]} 11... Qxd4 {[%clk 0:02:54]} 12. Qxd4 {[%clk 0:02:39.2]}
12... Nxd4 {[%clk 0:02:55.9]} 13. O-O-O {[%clk 0:02:39.7]} 13... Nc6 {[%clk
0:02:56]} 14. h4 {[%clk 0:02:38.8]} 14... d6 {[%clk 0:02:49.9]} 15. h5 {[%clk
0:02:39.1]} 15... Bd7 {[%clk 0:02:42.8]} 16. hxg6 {[%clk 0:02:36.1]} 16... hxg6
{[%clk 0:02:43.5]} 17. Ng5 {[%clk 0:02:32.4]} 17... Ne5 {[%clk 0:02:36.5]} 18.
Bb3 {[%clk 0:02:30]} 18... Kg7 {[%clk 0:02:19.4]} 19. Rh7+ {[%clk 0:02:27.2]}
19... Kf6 {[%clk 0:02:19.7]} 20. Ne4+ {[%clk 0:02:27.1]} 20... Kf5 {[%clk
0:02:19.5]} 21. Rd4 {[%clk 0:01:09.5]} 21... g5 {[%clk 0:02:11.7]} 22. Rh6
{[%clk 0:01:03.5]} 22... g4 {[%clk 0:01:44.3]} 23. Ng3+ {[%clk 0:00:47.2]} 23...
Kg5 {[%clk 0:01:43.7]} 24. Rh5+ {[%clk 0:00:48.1]} 24... Kg6 {[%clk 0:01:44.6]}
25. Rxe5 {[%clk 0:00:48.5]} 25... dxe5 {[%clk 0:01:40.2]} 26. Rxd7 {[%clk
0:00:49.5]} 26... gxf3 {[%clk 0:01:35.2]} 27. gxf3 {[%clk 0:00:49.4]} 27... Kg5
{[%clk 0:01:33.2]} 28. Ne2 {[%clk 0:00:46.9]} 28... Kf6 {[%clk 0:01:26.3]} 29.
Rxb7 {[%clk 0:00:46.6]} 29... Rh8 {[%clk 0:01:27.7]} 30. Ng3 {[%clk 0:00:44.8]}
30... Rad8 {[%clk 0:01:16.7]} 31. Rb4 {[%clk 0:00:36.3]} 31... Rh3 {[%clk
0:01:14.3]} 32. Rg4 {[%clk 0:00:36.7]} 32... e6 {[%clk 0:01:07.8]} 33. c4 {[%clk
0:00:29.6]} 33... Rh2 {[%clk 0:01:06.1]} 34. Ne4+ {[%clk 0:00:27.7]} 34... Ke7
{[%clk 0:01:06.8]} 35. Rg1 {[%clk 0:00:20.1]} 35... Rh3 {[%clk 0:01:04.2]} 36.
Rf1 {[%clk 0:00:16.6]} 36... Rd3 {[%clk 0:01:02]} 37. Nd2 {[%clk 0:00:16.3]}
37... f5 {[%clk 0:00:56.5]} 38. c5 {[%clk 0:00:16.5]} 38... Rd7 {[%clk
0:00:56.6]} 39. Bc2 {[%clk 0:00:16.1]} 39... a5 {[%clk 0:00:54.8]} 40. a3 {[%clk
0:00:16.3]} 40... Rb7 {[%clk 0:00:53.7]} 41. Nc4 {[%clk 0:00:15.7]} 41... Rb5
{[%clk 0:00:51.3]} 42. Nxe5 {[%clk 0:00:15.9]} 42... Rxc5 {[%clk 0:00:52.1]} 43.
Nd3 {[%clk 0:00:16.8]} 43... Rc8 {[%clk 0:00:51.4]} 44. Rf2 {[%clk 0:00:17.5]}
44... Kf6 {[%clk 0:00:50.8]} 45. Kd2 {[%clk 0:00:15.7]} 45... e5 {[%clk
0:00:51.5]} 46. Re2 {[%clk 0:00:16.7]} 46... Rd8 {[%clk 0:00:51.2]} 47. Kc3
{[%clk 0:00:15.5]} 47... Rxf3 {[%clk 0:00:51.2]} 48. Kc4 {[%clk 0:00:13.1]}
48... e4 {[%clk 0:00:49]} 49. Nc5 {[%clk 0:00:13.3]} 49... Rf1 {[%clk
0:00:42.9]} 50. b4 {[%clk 0:00:13.4]} 50... axb4 {[%clk 0:00:42.8]} 51. axb4
{[%clk 0:00:14.3]} 51... Rc1 {[%clk 0:00:43.2]} 52. b5 {[%clk 0:00:14]} 52... e3
{[%clk 0:00:40.3]} 53. b6 {[%clk 0:00:10.9]} 53... Rd2 {[%clk 0:00:36.7]} 54.
Kc3 {[%clk 0:00:08.5]} 54... Rcxc2+ {[%clk 0:00:37.1]} 55. Kb4 {[%clk
0:00:08.5]} 55... Rb2+ {[%clk 0:00:33.8]} 56. Nb3 {[%clk 0:00:09.2]} 56... Rxe2
{[%clk 0:00:23.2]} 57. b7 {[%clk 0:00:09.2]} 57... Re1 {[%clk 0:00:24.6]} 58.
b8=Q {[%clk 0:00:04.1]} 58... Rxb3+ {[%clk 0:00:25.4]} 59. Kxb3 {[%clk
0:00:05.4]} 59... Rb1+ {[%clk 0:00:26.8]} 60. Kc4 {[%clk 0:00:06.7]} 60... Rxb8
{[%clk 0:00:28.7]} 61. Kd3 {[%clk 0:00:08.1]} 61... Re8 {[%clk 0:00:29.3]} 0-1

[Event "*** Titled Tuesday Blitz"]
[Site "Chess.com"]
[Date "2019.05.07"]
[Round "7"]
[White "RojonR"]
[Black "DenishevM"]
[Result "1/2-1/2"]
[WhiteElo "2429"]
[BlackElo "2592"]
[TimeControl "180+2"]
[EndTime "14:42:33 PDT"]
[Termination "Game drawn by repetition"]

1. e4 {[%clk 0:02:58.1]} 1... c5 {[%clk 0:02:59.2]} 2. Nf3 {[%clk 0:02:57.7]}
2... d6 {[%clk 0:02:58.8]} 3. d4 {[%clk 0:02:57.4]} 3... cxd4 {[%clk 0:03:00.7]}
4. Qxd4 {[%clk 0:02:58.4]} 4... a6 {[%clk 0:03:01.5]} 5. Be3 {[%clk 0:02:57.6]}
5... e5 {[%clk 0:03:00.8]} 6. Qd2 {[%clk 0:02:56.5]} 6... h6 {[%clk 0:03:01.3]}
7. c4 {[%clk 0:02:55.4]} 7... Nf6 {[%clk 0:03:02.6]} 8. Nc3 {[%clk 0:02:55.5]}
8... Be7 {[%clk 0:03:00.6]} 9. Bd3 {[%clk 0:02:52.4]} 9... Be6 {[%clk
0:03:01.3]} 10. h3 {[%clk 0:02:52.1]} 10... O-O {[%clk 0:03:02]} 11. O-O {[%clk
0:02:52]} 11... Nbd7 {[%clk 0:03:03.3]} 12. Rfd1 {[%clk 0:02:48.2]} 12... Rc8
{[%clk 0:03:00.6]} 13. Qe2 {[%clk 0:02:45.3]} 13... Qc7 {[%clk 0:02:39.7]} 14.
Rac1 {[%clk 0:02:26.7]} 14... Qb8 {[%clk 0:02:28.5]} 15. a4 {[%clk 0:02:06.6]}
15... Nc5 {[%clk 0:02:18.9]} 16. Bc2 {[%clk 0:02:00.9]} 16... Rfd8 {[%clk
0:01:48.6]} 17. b4 {[%clk 0:01:53.5]} 17... Bxc4 {[%clk 0:01:31.4]} 18. Qxc4
{[%clk 0:01:35.3]} 18... Ncxe4 {[%clk 0:01:24.3]} 19. Qxc8 {[%clk 0:01:25.2]}
19... Rxc8 {[%clk 0:01:20.1]} 20. Nxe4 {[%clk 0:01:25.6]} 20... Nxe4 {[%clk
0:00:41.2]} 21. Bxe4 {[%clk 0:01:27.5]} 21... b5 {[%clk 0:00:37.6]} 22. axb5
{[%clk 0:01:11.5]} 22... axb5 {[%clk 0:00:38]} 23. Rxc8+ {[%clk 0:01:04.9]}
23... Qxc8 {[%clk 0:00:39.9]} 24. Ra1 {[%clk 0:01:05.6]} 24... Qc3 {[%clk
0:00:28]} 25. Ra8+ {[%clk 0:01:00.4]} 25... Bf8 {[%clk 0:00:29.3]} 26. Bd2
{[%clk 0:00:53.1]} 26... Qc4 {[%clk 0:00:26.9]} 27. Bb7 {[%clk 0:00:44]} 27...
g5 {[%clk 0:00:24.8]} 28. Rc8 {[%clk 0:00:39.7]} 28... Qb3 {[%clk 0:00:19.3]}
29. Bc6 {[%clk 0:00:33.6]} 29... d5 {[%clk 0:00:13.2]} 30. Nxe5 {[%clk
0:00:20.8]} 30... Qd1+ {[%clk 0:00:13.5]} 31. Kh2 {[%clk 0:00:21.6]} 31... Qxd2
{[%clk 0:00:12.3]} 32. Nd7 {[%clk 0:00:22.6]} 32... Qxb4 {[%clk 0:00:10.7]} 33.
Nxf8 {[%clk 0:00:21.5]} 33... Kg7 {[%clk 0:00:07.1]} 34. Nd7 {[%clk 0:00:21.2]}
34... Qd6+ {[%clk 0:00:06.5]} 35. Kg1 {[%clk 0:00:20.1]} 35... b4 {[%clk
0:00:08.4]} 36. Nb6 {[%clk 0:00:19.6]} 36... b3 {[%clk 0:00:06.7]} 37. Nxd5
{[%clk 0:00:15.9]} 37... b2 {[%clk 0:00:06.9]} 38. Nc3 {[%clk 0:00:16.9]} 38...
Qd2 {[%clk 0:00:04.8]} 39. Be4 {[%clk 0:00:15]} 39... Qc1+ {[%clk 0:00:04]} 40.
Kh2 {[%clk 0:00:15.5]} 40... Qf4+ {[%clk 0:00:05.7]} 41. g3 {[%clk 0:00:15.4]}
41... Qxf2+ {[%clk 0:00:06.6]} 42. Kh1 {[%clk 0:00:16.5]} 42... Qe1+ {[%clk
0:00:07.8]} 43. Kg2 {[%clk 0:00:17.5]} 43... Qd2+ {[%clk 0:00:08.2]} 44. Kf3
{[%clk 0:00:17.7]} 44... f5 {[%clk 0:00:08.8]} 45. Bxf5 {[%clk 0:00:17.4]} 45...
Kf7 {[%clk 0:00:10.3]} 46. Rc7+ {[%clk 0:00:16.3]} 46... Ke8 {[%clk 0:00:11.4]}
47. Rc8+ {[%clk 0:00:16.7]} 47... Ke7 {[%clk 0:00:13]} 48. Kg4 {[%clk
0:00:17.6]} 48... Qd4+ {[%clk 0:00:10.1]} 49. Kh5 {[%clk 0:00:17.1]} 49... Kf6
{[%clk 0:00:11]} 50. g4 {[%clk 0:00:16]} 50... Ke7 {[%clk 0:00:11.2]} 51. Rc7+
{[%clk 0:00:16.4]} 51... Kf8 {[%clk 0:00:10]} 52. Rc8+ {[%clk 0:00:16.8]} 52...
Ke7 {[%clk 0:00:10.8]} 53. Rc7+ {[%clk 0:00:17.7]} 53... Ke8 {[%clk 0:00:10.6]}
54. Rc8+ {[%clk 0:00:15.4]} 54... Ke7 {[%clk 0:00:11.6]} 55. Rc7+ {[%clk
0:00:15.8]} 55... Kf8 {[%clk 0:00:13.2]} 56. Rc8+ {[%clk 0:00:14.3]} 56... Kf7
{[%clk 0:00:14.1]} 57. Rc7+ {[%clk 0:00:14.6]} 57... Kf6 {[%clk 0:00:14.1]} 58.
Rc6+ {[%clk 0:00:14.6]} 58... Kf7 {[%clk 0:00:12.7]} 59. Rc7+ {[%clk 0:00:15.1]}
59... Kf8 {[%clk 0:00:14.2]} 60. Rc8+ {[%clk 0:00:15.8]} 60... Kf7 {[%clk
0:00:15.8]} 61. Rc7+ {[%clk 0:00:16.8]} 61... Kf8 {[%clk 0:00:17.4]} 62. Rc8+
{[%clk 0:00:17.7]} 62... Kf7 {[%clk 0:00:18.9]} 63. Rc7+ {[%clk 0:00:18.7]}
1/2-1/2

[Event "*** Titled Tuesday Blitz"]
[Site "Chess.com"]
[Date "2019.05.07"]
[Round "7"]
[White "Oleg_Papayan"]
[Black "FancyPlaySyndrome"]
[Result "1/2-1/2"]
[WhiteElo "2543"]
[BlackElo "2527"]
[TimeControl "180+2"]
[EndTime "14:43:30 PDT"]
[Termination "Game drawn - insufficient material"]

1. e4 {[%clk 0:03:01.9]} 1... c5 {[%clk 0:03:00.2]} 2. Nf3 {[%clk 0:02:56.3]}
2... d6 {[%clk 0:03:01.5]} 3. Bb5+ {[%clk 0:02:50.6]} 3... Bd7 {[%clk
0:02:59.7]} 4. Bxd7+ {[%clk 0:02:50.8]} 4... Qxd7 {[%clk 0:03:01.6]} 5. O-O
{[%clk 0:02:52.2]} 5... Nc6 {[%clk 0:03:02.4]} 6. d4 {[%clk 0:02:53.2]} 6...
cxd4 {[%clk 0:03:00]} 7. Nxd4 {[%clk 0:02:55.1]} 7... g6 {[%clk 0:03:01.5]} 8.
Nc3 {[%clk 0:02:48.9]} 8... Bg7 {[%clk 0:03:01.3]} 9. Be3 {[%clk 0:02:50]} 9...
Nf6 {[%clk 0:02:59.4]} 10. f3 {[%clk 0:02:50.5]} 10... O-O {[%clk 0:03:00.8]}
11. Qd2 {[%clk 0:02:51]} 11... Rfc8 {[%clk 0:03:01.7]} 12. Nxc6 {[%clk
0:02:34.3]} 12... bxc6 {[%clk 0:03:00.3]} 13. e5 {[%clk 0:02:22.6]} 13... dxe5
{[%clk 0:02:59.1]} 14. Qxd7 {[%clk 0:02:23.6]} 14... Nxd7 {[%clk 0:03:01]} 15.
Rad1 {[%clk 0:02:25]} 15... Nb6 {[%clk 0:03:01.9]} 16. b3 {[%clk 0:02:18.2]}
16... f5 {[%clk 0:02:58.3]} 17. a4 {[%clk 0:02:01.7]} 17... Rd8 {[%clk 0:02:35]}
18. Rxd8+ {[%clk 0:02:01.4]} 18... Rxd8 {[%clk 0:02:35.6]} 19. a5 {[%clk
0:02:02.9]} 19... Nc8 {[%clk 0:02:37]} 20. Na4 {[%clk 0:01:54.1]} 20... Kf7
{[%clk 0:02:35]} 21. Kf2 {[%clk 0:01:42.4]} 21... e6 {[%clk 0:02:23.9]} 22. Ke2
{[%clk 0:01:41.8]} 22... Bf8 {[%clk 0:02:23.1]} 23. h4 {[%clk 0:01:20.3]} 23...
Bb4 {[%clk 0:02:23.2]} 24. a6 {[%clk 0:01:20.6]} 24... Rd5 {[%clk 0:02:15.3]}
25. c4 {[%clk 0:01:18.4]} 25... Ra5 {[%clk 0:02:10.6]} 26. Rd1 {[%clk 0:01:18]}
26... Ke8 {[%clk 0:02:08.2]} 27. h5 {[%clk 0:01:10.4]} 27... Rxa6 {[%clk
0:02:06.9]} 28. hxg6 {[%clk 0:01:11.7]} 28... hxg6 {[%clk 0:02:08.5]} 29. Rh1
{[%clk 0:01:13.2]} 29... Ne7 {[%clk 0:01:58.5]} 30. Rh7 {[%clk 0:01:10.6]} 30...
c5 {[%clk 0:01:48.3]} 31. Bxc5 {[%clk 0:01:10.3]} 31... Bxc5 {[%clk 0:01:48.1]}
32. Nxc5 {[%clk 0:01:12.2]} 32... Rb6 {[%clk 0:01:46.9]} 33. Kd3 {[%clk
0:01:05.4]} 33... a5 {[%clk 0:01:46.9]} 34. Kc3 {[%clk 0:01:04.4]} 34... Rc6
{[%clk 0:01:42.9]} 35. Rh8+ {[%clk 0:00:58.5]} 35... Kf7 {[%clk 0:01:42.2]} 36.
Nd7 {[%clk 0:00:59.9]} 36... Kg7 {[%clk 0:01:35.1]} 37. Re8 {[%clk 0:00:56.1]}
37... Ng8 {[%clk 0:01:25.9]} 38. Nxe5 {[%clk 0:00:51.8]} 38... Ra6 {[%clk
0:01:27.3]} 39. c5 {[%clk 0:00:39.8]} 39... Nf6 {[%clk 0:01:25.3]} 40. Re7+
{[%clk 0:00:26.2]} 40... Kg8 {[%clk 0:01:26.7]} 41. Kc4 {[%clk 0:00:26.9]} 41...
Nd5 {[%clk 0:01:26.5]} 42. Re8+ {[%clk 0:00:26.3]} 42... Kg7 {[%clk 0:01:26.7]}
43. c6 {[%clk 0:00:23.8]} 43... Kf6 {[%clk 0:01:24.1]} 44. Nd7+ {[%clk
0:00:20.8]} 44... Kf7 {[%clk 0:01:25.6]} 45. Rxe6 {[%clk 0:00:19.8]} 45... Kxe6
{[%clk 0:01:15.8]} 46. Nc5+ {[%clk 0:00:21]} 46... Kd6 {[%clk 0:01:17.3]} 47.
Nxa6 {[%clk 0:00:22.3]} 47... Kxc6 {[%clk 0:01:08.5]} 48. Nb8+ {[%clk
0:00:23.1]} 48... Kd6 {[%clk 0:01:09.9]} 49. Kb5 {[%clk 0:00:24.3]} 49... Ne3
{[%clk 0:01:03.7]} 50. Kxa5 {[%clk 0:00:25.4]} 50... Nxg2 {[%clk 0:01:03.8]} 51.
b4 {[%clk 0:00:26.9]} 51... Ne3 {[%clk 0:01:02.2]} 52. b5 {[%clk 0:00:27.5]}
52... Nc4+ {[%clk 0:01:01.2]} 53. Kb4 {[%clk 0:00:27.4]} 53... Nb6 {[%clk
0:01:00.4]} 54. Nc6 {[%clk 0:00:27.3]} 54... g5 {[%clk 0:00:57.4]} 55. Nd4
{[%clk 0:00:23.8]} 55... Ke5 {[%clk 0:00:58.6]} 56. Nc6+ {[%clk 0:00:16.9]}
56... Kf4 {[%clk 0:00:54.9]} 57. Kc5 {[%clk 0:00:17.6]} 57... Na4+ {[%clk
0:00:54.9]} 58. Kb4 {[%clk 0:00:18.4]} 58... Nb6 {[%clk 0:00:56.5]} 59. Kc5
{[%clk 0:00:19.6]} 59... Na4+ {[%clk 0:00:56.5]} 60. Kb4 {[%clk 0:00:20.7]}
60... Nb6 {[%clk 0:00:56.9]} 61. Kc5 {[%clk 0:00:22.1]} 61... Kxf3 {[%clk
0:00:26.2]} 62. Kxb6 {[%clk 0:00:18]} 62... g4 {[%clk 0:00:27.8]} 63. Nd4+
{[%clk 0:00:15.6]} 63... Ke4 {[%clk 0:00:25.3]} 64. Ne2 {[%clk 0:00:09.7]} 64...
f4 {[%clk 0:00:26.6]} 65. Nxf4 {[%clk 0:00:10.6]} 65... Kxf4 {[%clk 0:00:27.6]}
66. Kc6 {[%clk 0:00:10.7]} 66... g3 {[%clk 0:00:29.2]} 67. b6 {[%clk 0:00:12.6]}
67... g2 {[%clk 0:00:30.8]} 68. b7 {[%clk 0:00:14.5]} 68... g1=Q {[%clk
0:00:32.3]} 69. b8=Q+ {[%clk 0:00:16.2]} 69... Kf3 {[%clk 0:00:33.7]} 70. Qf8+
{[%clk 0:00:17]} 70... Kg2 {[%clk 0:00:35.2]} 71. Qg7+ {[%clk 0:00:18]} 71...
Kf1 {[%clk 0:00:37.1]} 72. Qa1+ {[%clk 0:00:18.6]} 72... Kg2 {[%clk 0:00:37.9]}
73. Qb2+ {[%clk 0:00:19.4]} 73... Kf1 {[%clk 0:00:39.8]} 74. Qc1+ {[%clk
0:00:20.4]} 74... Kg2 {[%clk 0:00:41.7]} 75. Qd2+ {[%clk 0:00:21.6]} 75... Kf1
{[%clk 0:00:43.6]} 76. Qd1+ {[%clk 0:00:22.5]} 76... Kg2 {[%clk 0:00:45.5]} 77.
Qe2+ {[%clk 0:00:23.5]} 77... Kh1 {[%clk 0:00:46.1]} 78. Qh5+ {[%clk 0:00:20]}
78... Kg2 {[%clk 0:00:48]} 79. Qg4+ {[%clk 0:00:19.6]} 79... Kf1 {[%clk
0:00:49.5]} 80. Qf3+ {[%clk 0:00:20.3]} 80... Ke1 {[%clk 0:00:50]} 81. Qc3+
{[%clk 0:00:17.7]} 81... Kf1 {[%clk 0:00:51]} 82. Qd3+ {[%clk 0:00:18]} 82...
Kg2 {[%clk 0:00:51.7]} 83. Qe2+ {[%clk 0:00:18.5]} 83... Kh1 {[%clk 0:00:50.2]}
84. Qf3+ {[%clk 0:00:15.9]} 84... Qg2 {[%clk 0:00:50.8]} 85. Qd5 {[%clk
0:00:15.6]} 85... Qxd5+ {[%clk 0:00:44.5]} 86. Kxd5 {[%clk 0:00:17.5]} 1/2-1/2

[Event "*** Titled Tuesday Blitz"]
[Site "Chess.com"]
[Date "2019.05.07"]
[Round "7"]
[White "Vincent_Vega95"]
[Black "Manukyan_Artak"]
[Result "1-0"]
[WhiteElo "2666"]
[BlackElo "2428"]
[TimeControl "180+2"]
[EndTime "14:43:34 PDT"]
[Termination "Vincent_Vega95 won by resignation"]

1. d4 {[%clk 0:02:59.1]} 1... Nf6 {[%clk 0:02:59.6]} 2. c4 {[%clk 0:03:00.1]}
2... e6 {[%clk 0:03:00.7]} 3. Nc3 {[%clk 0:03:01.2]} 3... Bb4 {[%clk 0:03:01.6]}
4. e3 {[%clk 0:03:02.5]} 4... c5 {[%clk 0:03:01.1]} 5. Ne2 {[%clk 0:03:02.6]}
5... d5 {[%clk 0:03:00.1]} 6. a3 {[%clk 0:02:59]} 6... Bxc3+ {[%clk 0:02:59.1]}
7. Nxc3 {[%clk 0:03:00.9]} 7... cxd4 {[%clk 0:02:57.6]} 8. exd4 {[%clk
0:03:02.1]} 8... Nc6 {[%clk 0:02:55.9]} 9. c5 {[%clk 0:03:01.2]} 9... Ne4 {[%clk
0:02:49.2]} 10. Bd3 {[%clk 0:02:49.4]} 10... f5 {[%clk 0:02:22.4]} 11. Ne2
{[%clk 0:02:33.4]} 11... O-O {[%clk 0:02:19.3]} 12. O-O {[%clk 0:02:33.7]} 12...
Bd7 {[%clk 0:02:11.1]} 13. b4 {[%clk 0:02:30.3]} 13... a6 {[%clk 0:02:11.6]} 14.
f3 {[%clk 0:02:31.1]} 14... Nf6 {[%clk 0:02:09.5]} 15. Bb2 {[%clk 0:02:25.2]}
15... g5 {[%clk 0:02:06.6]} 16. Qd2 {[%clk 0:02:25.5]} 16... f4 {[%clk
0:02:04.1]} 17. a4 {[%clk 0:02:26.5]} 17... Ne7 {[%clk 0:01:56.6]} 18. Nc1
{[%clk 0:02:17.3]} 18... Nf5 {[%clk 0:01:55.7]} 19. Bxf5 {[%clk 0:02:17.8]}
19... exf5 {[%clk 0:01:57.6]} 20. Nd3 {[%clk 0:02:19.3]} 20... Re8 {[%clk
0:01:26.8]} 21. Ne5 {[%clk 0:02:15.7]} 21... Be6 {[%clk 0:01:27.6]} 22. Rfe1
{[%clk 0:01:59.8]} 22... Nd7 {[%clk 0:01:24]} 23. Re2 {[%clk 0:01:46.1]} 23...
Nxe5 {[%clk 0:01:24.6]} 24. Rxe5 {[%clk 0:01:48]} 24... Qf6 {[%clk 0:01:17.9]}
25. Rae1 {[%clk 0:01:46.3]} 25... Bf7 {[%clk 0:01:17]} 26. Qd3 {[%clk
0:01:47.1]} 26... Rxe5 {[%clk 0:01:05.8]} 27. Rxe5 {[%clk 0:01:47.6]} 27... Be6
{[%clk 0:01:03.1]} 28. Qe2 {[%clk 0:01:42.2]} 28... Kf7 {[%clk 0:01:02.4]} 29.
b5 {[%clk 0:01:39.7]} 29... axb5 {[%clk 0:01:02.7]} 30. Qxb5 {[%clk 0:01:40.5]}
30... Qe7 {[%clk 0:00:57.7]} 31. h4 {[%clk 0:01:28.3]} 31... h6 {[%clk
0:00:57.6]} 32. a5 {[%clk 0:01:13.6]} 32... Qd7 {[%clk 0:00:51.5]} 33. Qb4
{[%clk 0:01:13.9]} 33... Qc6 {[%clk 0:00:40.4]} 34. Bc1 {[%clk 0:01:12]} 34...
Qa6 {[%clk 0:00:31.4]} 35. Bd2 {[%clk 0:01:12.8]} 35... Kf8 {[%clk 0:00:28.6]}
36. c6+ {[%clk 0:01:10.7]} 36... Kf7 {[%clk 0:00:29.9]} 37. Qd6 {[%clk
0:00:28.3]} 37... Re8 {[%clk 0:00:23.3]} 38. Rxe6 {[%clk 0:00:29.2]} 38... Rxe6
{[%clk 0:00:24.3]} 39. Qd7+ {[%clk 0:00:30.4]} 39... Re7 {[%clk 0:00:25.1]} 40.
Qxf5+ {[%clk 0:00:23.1]} 40... Kg8 {[%clk 0:00:23.5]} 41. hxg5 {[%clk
0:00:20.2]} 41... Qxc6 {[%clk 0:00:21.9]} 42. Bxf4 {[%clk 0:00:18.6]} 42... hxg5
{[%clk 0:00:22.3]} 43. Bxg5 {[%clk 0:00:19.7]} 43... Rf7 {[%clk 0:00:19.8]} 44.
Qe5 {[%clk 0:00:20.6]} 44... Kh7 {[%clk 0:00:17.6]} 45. Kh2 {[%clk 0:00:18.5]}
45... Qd7 {[%clk 0:00:17.2]} 46. f4 {[%clk 0:00:19.4]} 46... Qf5 {[%clk
0:00:17.7]} 47. Qd6 {[%clk 0:00:18.9]} 47... Qg6 {[%clk 0:00:18]} 48. Qxd5
{[%clk 0:00:19.9]} 48... Qh5+ {[%clk 0:00:19.2]} 49. Kg3 {[%clk 0:00:21.2]}
49... Qg6 {[%clk 0:00:20.3]} 50. Qf3 {[%clk 0:00:21.1]} 50... Rc7 {[%clk
0:00:19.6]} 51. d5 {[%clk 0:00:21.4]} 51... Qf5 {[%clk 0:00:18.5]} 52. d6 {[%clk
0:00:20.4]} 52... Rd7 {[%clk 0:00:18.7]} 53. Be7 {[%clk 0:00:21.1]} 53... Qg6+
{[%clk 0:00:18.3]} 54. Qg4 {[%clk 0:00:22.1]} 54... Qd3+ {[%clk 0:00:19.4]} 55.
Kh4 {[%clk 0:00:23.5]} 55... Rxd6 {[%clk 0:00:18.7]} 56. Bxd6 {[%clk 0:00:23.2]}
56... Qxd6 {[%clk 0:00:20.2]} 57. Qf5+ {[%clk 0:00:24.5]} 57... Kg7 {[%clk
0:00:18.9]} 58. g4 {[%clk 0:00:25.8]} 58... Qd2 {[%clk 0:00:18.5]} 59. Qg5+
{[%clk 0:00:23.7]} 59... Kf7 {[%clk 0:00:19.7]} 60. Qf5+ {[%clk 0:00:25]} 60...
Kg7 {[%clk 0:00:21]} 61. Qe5+ {[%clk 0:00:26.4]} 61... Kf7 {[%clk 0:00:21.5]}
62. f5 {[%clk 0:00:21.4]} 62... Qh6+ {[%clk 0:00:20.7]} 63. Kg3 {[%clk
0:00:22.5]} 63... Qh1 {[%clk 0:00:19]} 64. Qe6+ {[%clk 0:00:21.1]} 64... Kf8
{[%clk 0:00:19.8]} 65. Qc8+ {[%clk 0:00:21.6]} 65... Kf7 {[%clk 0:00:20.5]} 66.
Qe6+ {[%clk 0:00:23]} 66... Kf8 {[%clk 0:00:22.2]} 67. f6 {[%clk 0:00:23.8]}
67... Qg1+ {[%clk 0:00:22.8]} 68. Kf4 {[%clk 0:00:24.8]} 68... Qf2+ {[%clk
0:00:23.8]} 69. Ke5 {[%clk 0:00:25.6]} 69... Qe3+ {[%clk 0:00:24.5]} 70. Kd6
{[%clk 0:00:25.9]} 70... Qa3+ {[%clk 0:00:25.4]} 71. Kd7 {[%clk 0:00:25.9]}
71... Qa4+ {[%clk 0:00:26.6]} 72. Kc8 {[%clk 0:00:26.9]} 72... Qb4 {[%clk
0:00:20.7]} 73. Qe7+ {[%clk 0:00:26.9]} 73... Qxe7 {[%clk 0:00:21.5]} 74. fxe7+
{[%clk 0:00:28.8]} 74... Kxe7 {[%clk 0:00:22.7]} 75. Kxb7 {[%clk 0:00:30.7]} 1-0